[Event "*** Titled Tuesday Blitz"]
[Site "Chess.com"]
[Date "2019.10.01"]
[Round "7"]
[White "severomorskij"]
[Black "tigra"]
[Result "1-0"]
[WhiteElo "2853"]
[BlackElo "2721"]
[TimeControl "180+2"]
[EndTime "14:38:59 PDT"]
[Termination "severomorskij won by resignation"]

1. d4 {[%clk 0:03:01.9]} 1... Nf6 {[%clk 0:02:59.8]} 2. c4 {[%clk 0:03:03]} 2...
e6 {[%clk 0:02:59.5]} 3. Nc3 {[%clk 0:03:04]} 3... d5 {[%clk 0:02:58.7]} 4. cxd5
{[%clk 0:03:03.9]} 4... exd5 {[%clk 0:02:59.4]} 5. Bg5 {[%clk 0:03:04.9]} 5...
c6 {[%clk 0:03:00]} 6. e3 {[%clk 0:03:06]} 6... Be6 {[%clk 0:02:54.7]} 7. Bd3
{[%clk 0:03:05.6]} 7... Nbd7 {[%clk 0:02:55.3]} 8. f4 {[%clk 0:02:58.5]} 8... h6
{[%clk 0:02:53.2]} 9. Bh4 {[%clk 0:02:58.6]} 9... g5 {[%clk 0:02:32.9]} 10. fxg5
{[%clk 0:02:44.7]} 10... Ng4 {[%clk 0:02:33.7]} 11. Nf3 {[%clk 0:02:39.7]} 11...
Be7 {[%clk 0:02:32.6]} 12. Qe2 {[%clk 0:02:32.8]} 12... hxg5 {[%clk 0:02:33.3]}
13. Bg3 {[%clk 0:02:33.3]} 13... f5 {[%clk 0:02:34]} 14. O-O-O {[%clk
0:02:30.2]} 14... Nh6 {[%clk 0:01:45.4]} 15. Kb1 {[%clk 0:02:18]} 15... Qa5
{[%clk 0:01:36.7]} 16. h4 {[%clk 0:02:13]} 16... g4 {[%clk 0:01:29.1]} 17. Ng5
{[%clk 0:02:12.6]} 17... Nf8 {[%clk 0:01:23.4]} 18. Qc2 {[%clk 0:02:05.4]} 18...
Bd7 {[%clk 0:01:19.6]} 19. Rhf1 {[%clk 0:01:56.2]} 19... Rg8 {[%clk 0:01:03.5]}
20. Bf4 {[%clk 0:01:32.2]} 20... Ng6 {[%clk 0:01:00.5]} 21. Bg3 {[%clk
0:01:32.5]} 21... Nxh4 {[%clk 0:00:57.4]} 22. Bxh4 {[%clk 0:01:24.8]} 22... Bxg5
{[%clk 0:00:58.4]} 23. Bg3 {[%clk 0:00:45.1]} 23... Qb4 {[%clk 0:00:50.9]} 24.
Rde1 {[%clk 0:00:22.9]} 24... Be6 {[%clk 0:00:22.4]} 25. e4 {[%clk 0:00:18]}
25... dxe4 {[%clk 0:00:23.3]} 26. Bxe4 {[%clk 0:00:17.8]} 26... fxe4 {[%clk
0:00:14.7]} 27. Qxe4 {[%clk 0:00:17.9]} 27... Qe7 {[%clk 0:00:06.7]} 28. Qxe6
{[%clk 0:00:18.7]} 28... Qxe6 {[%clk 0:00:08.6]} 29. Rxe6+ {[%clk 0:00:20]}
29... Kd7 {[%clk 0:00:10.5]} 30. Rd6+ {[%clk 0:00:21.1]} 30... Ke7 {[%clk
0:00:10.9]} 31. d5 {[%clk 0:00:12.9]} 31... Raf8 {[%clk 0:00:10.7]} 32. Re1+
{[%clk 0:00:12.6]} 32... Kf7 {[%clk 0:00:12.1]} 33. dxc6 {[%clk 0:00:11.1]}
33... bxc6 {[%clk 0:00:14]} 34. Rxc6 {[%clk 0:00:12.1]} 34... Re8 {[%clk
0:00:14.6]} 35. Ne4 {[%clk 0:00:10.6]} 35... Kg7 {[%clk 0:00:14.4]} 36. Nxg5
{[%clk 0:00:10.6]} 36... Nf5 {[%clk 0:00:14.8]} 37. Be5+ {[%clk 0:00:10.1]}
37... Kf8 {[%clk 0:00:15.1]} 38. Rf6+ {[%clk 0:00:10.7]} 1-0

[Event "*** Titled Tuesday Blitz"]
[Site "Chess.com"]
[Date "2019.10.01"]
[Round "7"]
[White "kingofthenil"]
[Black "KhalilMousavi77"]
[Result "0-1"]
[WhiteElo "2558"]
[BlackElo "2794"]
[TimeControl "180+2"]
[EndTime "14:38:59 PDT"]
[Termination "KhalilMousavi77 won by resignation"]

1. e4 {[%clk 0:02:53.1]} 1... c5 {[%clk 0:02:59.9]} 2. d3 {[%clk 0:02:53.2]}
2... Nc6 {[%clk 0:03:00.8]} 3. g3 {[%clk 0:02:53.2]} 3... g6 {[%clk 0:03:02.6]}
4. Bg2 {[%clk 0:02:53.8]} 4... Bg7 {[%clk 0:03:04.3]} 5. f4 {[%clk 0:02:55.7]}
5... d6 {[%clk 0:03:04.8]} 6. Nf3 {[%clk 0:02:55]} 6... e6 {[%clk 0:03:06]} 7.
O-O {[%clk 0:02:52.1]} 7... Nge7 {[%clk 0:03:07]} 8. c3 {[%clk 0:02:52.8]} 8...
O-O {[%clk 0:03:08]} 9. Be3 {[%clk 0:02:52.3]} 9... b6 {[%clk 0:03:01.9]} 10. d4
{[%clk 0:02:52.2]} 10... cxd4 {[%clk 0:03:03.8]} 11. cxd4 {[%clk 0:02:54.1]}
11... d5 {[%clk 0:03:05.2]} 12. e5 {[%clk 0:02:55.2]} 12... Nf5 {[%clk
0:03:04.3]} 13. Bf2 {[%clk 0:02:55.4]} 13... Ba6 {[%clk 0:03:05.2]} 14. Re1
{[%clk 0:02:55.6]} 14... h5 {[%clk 0:03:06.1]} 15. Nc3 {[%clk 0:02:53.5]} 15...
Rc8 {[%clk 0:03:07.3]} 16. h3 {[%clk 0:02:51.5]} 16... Na5 {[%clk 0:03:06]} 17.
Rc1 {[%clk 0:02:45.9]} 17... Nc4 {[%clk 0:03:07]} 18. b3 {[%clk 0:02:46.6]}
18... Nb2 {[%clk 0:03:08.1]} 19. Qd2 {[%clk 0:02:42.1]} 19... Nd3 {[%clk
0:03:09.2]} 20. g4 {[%clk 0:02:43.6]} 20... hxg4 {[%clk 0:03:08.2]} 21. hxg4
{[%clk 0:02:45.5]} 21... Nh6 {[%clk 0:03:09.8]} 22. Bh4 {[%clk 0:02:40.1]} 22...
Qd7 {[%clk 0:03:05.7]} 23. Bh3 {[%clk 0:02:32.6]} 23... Rc7 {[%clk 0:02:48.6]}
24. Bf6 {[%clk 0:02:04.1]} 24... Rfc8 {[%clk 0:02:45.3]} 25. f5 {[%clk
0:02:04.2]} 25... Nxe1 {[%clk 0:02:40.5]} 26. Nxe1 {[%clk 0:01:59.4]} 26... exf5
{[%clk 0:02:39]} 27. gxf5 {[%clk 0:01:55.1]} 27... Nxf5 {[%clk 0:02:15.1]} 28.
Nd3 {[%clk 0:01:47]} 28... Bxf6 {[%clk 0:01:50.7]} 29. exf6 {[%clk 0:01:46.8]}
29... Qe6 {[%clk 0:01:45.2]} 30. Nf4 {[%clk 0:01:40.1]} 30... Qe4 {[%clk
0:01:11.5]} 31. Nxe4 {[%clk 0:00:07.6]} 31... Rxc1+ {[%clk 0:01:10.7]} 32. Kh2
{[%clk 0:00:09.5]} 32... R8c2 {[%clk 0:01:10.4]} 33. Nxd5 {[%clk 0:00:10.1]}
33... Rxd2+ {[%clk 0:01:11.3]} 34. Nxd2 {[%clk 0:00:12]} 34... Rc2 {[%clk
0:01:13.2]} 35. Bxf5 {[%clk 0:00:05.9]} 35... Rxd2+ {[%clk 0:01:13.2]} 36. Kg3
{[%clk 0:00:06.5]} 36... gxf5 {[%clk 0:01:13.3]} 37. Ne7+ {[%clk 0:00:05.4]}
37... Kf8 {[%clk 0:01:14.2]} 38. d5 {[%clk 0:00:06.8]} 38... Rxa2 {[%clk
0:01:13]} 39. Kf4 {[%clk 0:00:08.7]} 39... Rb2 {[%clk 0:01:13.8]} 40. Ke5 {[%clk
0:00:09.9]} 40... Rxb3 {[%clk 0:01:14.7]} 41. d6 {[%clk 0:00:11.8]} 41... Re3+
{[%clk 0:01:14.7]} 42. Kxf5 {[%clk 0:00:10.8]} 42... Bd3+ {[%clk 0:01:10.2]} 43.
Kf4 {[%clk 0:00:10.7]} 43... Re6 {[%clk 0:01:11.1]} 44. d7 {[%clk 0:00:11.1]}
44... Rxf6+ {[%clk 0:01:11.8]} 45. Ke3 {[%clk 0:00:09.5]} 45... Re6+ {[%clk
0:01:11.1]} 46. Kxd3 {[%clk 0:00:09.6]} 46... Rd6+ {[%clk 0:01:12.3]} 47. Ke4
{[%clk 0:00:09.4]} 47... Kxe7 {[%clk 0:01:12.4]} 48. d8=Q+ {[%clk 0:00:09.4]}
48... Rxd8 {[%clk 0:01:12.9]} 0-1

[Event "*** Titled Tuesday Blitz"]
[Site "Chess.com"]
[Date "2019.10.01"]
[Round "7"]
[White "SlavenPastar"]
[Black "SoltaniciR"]
[Result "0-1"]
[WhiteElo "2413"]
[BlackElo "2567"]
[TimeControl "180+2"]
[EndTime "14:39:13 PDT"]
[Termination "SoltaniciR won on time"]

1. d4 {[%clk 0:03:01.9]} 1... Nf6 {[%clk 0:03:00.6]} 2. c4 {[%clk 0:03:02.8]}
2... Nc6 {[%clk 0:03:01.9]} 3. d5 {[%clk 0:03:02.3]} 3... Ne5 {[%clk 0:03:02.6]}
4. e3 {[%clk 0:03:00.3]} 4... e6 {[%clk 0:03:03.9]} 5. Nc3 {[%clk 0:03:00.1]}
5... Bb4 {[%clk 0:03:04.7]} 6. Bd2 {[%clk 0:02:58.4]} 6... O-O {[%clk
0:03:04.4]} 7. Nf3 {[%clk 0:02:58]} 7... Nxf3+ {[%clk 0:03:03]} 8. Qxf3 {[%clk
0:02:58.6]} 8... c6 {[%clk 0:03:04.2]} 9. a3 {[%clk 0:02:55.7]} 9... Bd6 {[%clk
0:02:54]} 10. e4 {[%clk 0:02:47.5]} 10... exd5 {[%clk 0:02:49.8]} 11. exd5
{[%clk 0:02:40.8]} 11... Re8+ {[%clk 0:02:48.5]} 12. Be2 {[%clk 0:02:41.7]}
12... cxd5 {[%clk 0:02:44.7]} 13. cxd5 {[%clk 0:02:37.6]} 13... Be5 {[%clk
0:02:45.8]} 14. O-O {[%clk 0:02:25.5]} 14... d6 {[%clk 0:02:46.4]} 15. h3 {[%clk
0:02:19.2]} 15... a6 {[%clk 0:02:31.7]} 16. Rfe1 {[%clk 0:02:15.3]} 16... b5
{[%clk 0:02:31.7]} 17. Bd3 {[%clk 0:02:04]} 17... Bb7 {[%clk 0:02:29.8]} 18. Bg5
{[%clk 0:01:59.9]} 18... Qd7 {[%clk 0:02:13.7]} 19. Bf5 {[%clk 0:01:50.5]} 19...
Qc7 {[%clk 0:02:14.6]} 20. Rac1 {[%clk 0:01:45]} 20... Qb6 {[%clk 0:02:00.3]}
21. Re3 {[%clk 0:00:58]} 21... Bd4 {[%clk 0:01:55.4]} 22. Rxe8+ {[%clk
0:00:52.6]} 22... Rxe8 {[%clk 0:01:56]} 23. Rd1 {[%clk 0:00:43.8]} 23... h6
{[%clk 0:01:36.7]} 24. Bh4 {[%clk 0:00:39.1]} 24... a5 {[%clk 0:01:19.5]} 25.
Bxf6 {[%clk 0:00:35.9]} 25... Bxf6 {[%clk 0:01:19.6]} 26. Bd7 {[%clk 0:00:36.5]}
26... Re7 {[%clk 0:01:08]} 27. Bf5 {[%clk 0:00:23.8]} 27... b4 {[%clk
0:01:03.4]} 28. Ne4 {[%clk 0:00:21.6]} 28... Bxb2 {[%clk 0:00:59.7]} 29. axb4
{[%clk 0:00:20.5]} 29... axb4 {[%clk 0:01:00.8]} 30. Ng3 {[%clk 0:00:16.4]}
30... g6 {[%clk 0:00:56.2]} 31. Bb1 {[%clk 0:00:16.5]} 31... Bd4 {[%clk
0:00:45.4]} 32. h4 {[%clk 0:00:12.6]} 32... Re5 {[%clk 0:00:32.9]} 33. h5 {[%clk
0:00:12.6]} 33... Bxd5 {[%clk 0:00:34]} 34. Qf4 {[%clk 0:00:10.1]} 34... Bc3
{[%clk 0:00:20.8]} 35. hxg6 {[%clk 0:00:05.8]} 35... fxg6 {[%clk 0:00:20.2]} 36.
Qxh6 {[%clk 0:00:06.6]} 36... Bf7 {[%clk 0:00:14.7]} 37. Bxg6 {[%clk 0:00:07.3]}
37... Qc7 {[%clk 0:00:15.5]} 38. Qh7+ {[%clk 0:00:08.2]} 38... Kf8 {[%clk
0:00:16.9]} 39. Qh8+ {[%clk 0:00:09.8]} 39... Ke7 {[%clk 0:00:18.1]} 40. Nf5+
{[%clk 0:00:10.2]} 40... Rxf5 {[%clk 0:00:18.6]} 41. Bxf5 {[%clk 0:00:12.1]}
41... Bxh8 {[%clk 0:00:18.8]} 0-1

[Event "*** Titled Tuesday Blitz"]
[Site "Chess.com"]
[Date "2019.10.01"]
[Round "7"]
[White "Vlad_Lukiianchuk"]
[Black "IvanRadivojevic"]
[Result "0-1"]
[WhiteElo "2546"]
[BlackElo "2459"]
[TimeControl "180+2"]
[EndTime "14:39:15 PDT"]
[Termination "IvanRadivojevic won by resignation"]

1. c4 {[%clk 0:03:00.8]} 1... e5 {[%clk 0:03:00.3]} 2. Nc3 {[%clk 0:03:00.1]}
2... Nc6 {[%clk 0:03:01.7]} 3. g3 {[%clk 0:03:01.3]} 3... g6 {[%clk 0:03:03]} 4.
Bg2 {[%clk 0:03:02.3]} 4... Bg7 {[%clk 0:03:04.6]} 5. e3 {[%clk 0:03:03.5]} 5...
d6 {[%clk 0:03:06.1]} 6. Nge2 {[%clk 0:03:04.7]} 6... Be6 {[%clk 0:03:07.6]} 7.
d3 {[%clk 0:02:59.8]} 7... Qd7 {[%clk 0:02:28.1]} 8. h3 {[%clk 0:02:54.7]} 8...
Nge7 {[%clk 0:02:26.8]} 9. Rb1 {[%clk 0:02:51.6]} 9... O-O {[%clk 0:02:27]} 10.
Nd5 {[%clk 0:02:47.7]} 10... Nd8 {[%clk 0:02:24.9]} 11. Nxe7+ {[%clk 0:02:45.2]}
11... Qxe7 {[%clk 0:02:25.8]} 12. O-O {[%clk 0:02:46.7]} 12... Qd7 {[%clk
0:02:22.6]} 13. Kh2 {[%clk 0:02:46.4]} 13... c6 {[%clk 0:02:20.5]} 14. b3 {[%clk
0:02:43.8]} 14... d5 {[%clk 0:01:42.6]} 15. cxd5 {[%clk 0:02:20.9]} 15... cxd5
{[%clk 0:01:43.1]} 16. d4 {[%clk 0:02:13.9]} 16... e4 {[%clk 0:01:42.8]} 17. Nf4
{[%clk 0:02:10.6]} 17... Nc6 {[%clk 0:01:43.7]} 18. Bd2 {[%clk 0:02:09.9]} 18...
Rac8 {[%clk 0:01:41.2]} 19. Nxe6 {[%clk 0:02:07.4]} 19... fxe6 {[%clk
0:01:41.8]} 20. Qe2 {[%clk 0:02:07.2]} 20... a6 {[%clk 0:01:41.3]} 21. h4 {[%clk
0:02:05.7]} 21... Rce8 {[%clk 0:01:32.7]} 22. Bh3 {[%clk 0:02:03.5]} 22... Qd6
{[%clk 0:01:33.6]} 23. h5 {[%clk 0:02:02]} 23... e5 {[%clk 0:01:34.1]} 24. hxg6
{[%clk 0:02:00.4]} 24... hxg6 {[%clk 0:01:36]} 25. dxe5 {[%clk 0:02:00]} 25...
Nxe5 {[%clk 0:01:36.6]} 26. Kg2 {[%clk 0:01:58.8]} 26... g5 {[%clk 0:01:32.3]}
27. Rbd1 {[%clk 0:01:52.1]} 27... Rf3 {[%clk 0:01:25.4]} 28. g4 {[%clk
0:01:08.6]} 28... Ref8 {[%clk 0:01:21.8]} 29. Be1 {[%clk 0:01:03.7]} 29... Qe6
{[%clk 0:01:10.8]} 30. Qd2 {[%clk 0:00:52.2]} 30... Rxh3 {[%clk 0:01:07.7]} 31.
Qxd5 {[%clk 0:00:49.9]} 31... Qxd5 {[%clk 0:01:01.5]} 32. Rxd5 {[%clk
0:00:51.8]} 32... Rhf3 {[%clk 0:01:00.9]} 33. Bc3 {[%clk 0:00:48.5]} 33... Nf7
{[%clk 0:00:46.3]} 34. Bxg7 {[%clk 0:00:41.3]} 34... Kxg7 {[%clk 0:00:48.2]} 35.
Rd4 {[%clk 0:00:41.1]} 35... Ne5 {[%clk 0:00:40.8]} 36. Rxe4 {[%clk 0:00:35.7]}
36... Nd3 {[%clk 0:00:41.8]} 37. Re7+ {[%clk 0:00:36.5]} 37... Kg6 {[%clk
0:00:36.8]} 38. Re6+ {[%clk 0:00:34.6]} 38... R8f6 {[%clk 0:00:36.2]} 39. Rxf6+
{[%clk 0:00:30.9]} 39... Rxf6 {[%clk 0:00:38.1]} 40. Kg3 {[%clk 0:00:30.5]}
40... Nc5 {[%clk 0:00:33.8]} 41. f4 {[%clk 0:00:25.8]} 41... Ne4+ {[%clk
0:00:31.5]} 42. Kg2 {[%clk 0:00:26.6]} 42... Rc6 {[%clk 0:00:32]} 43. Rd1 {[%clk
0:00:23.6]} 43... Rc2+ {[%clk 0:00:31.2]} 44. Kf3 {[%clk 0:00:24.3]} 44... Nd2+
{[%clk 0:00:32.2]} 45. Kg3 {[%clk 0:00:23.4]} 45... Rxa2 {[%clk 0:00:28.8]} 46.
f5+ {[%clk 0:00:24.4]} 46... Kf6 {[%clk 0:00:30]} 47. Rh1 {[%clk 0:00:24.9]}
47... Ne4+ {[%clk 0:00:28.4]} 48. Kf3 {[%clk 0:00:25.7]} 48... Ke5 {[%clk
0:00:29.3]} 0-1

[Event "*** Titled Tuesday Blitz"]
[Site "Chess.com"]
[Date "2019.10.01"]
[Round "7"]
[White "TST2014"]
[Black "Orest_Vovk"]
[Result "1-0"]
[WhiteElo "2558"]
[BlackElo "2408"]
[TimeControl "180+2"]
[EndTime "14:39:18 PDT"]
[Termination "TST2014 won on time"]

1. d4 {[%clk 0:03:01.9]} 1... d5 {[%clk 0:03:00.3]} 2. c4 {[%clk 0:03:03.1]}
2... Bf5 {[%clk 0:03:00.5]} 3. Nc3 {[%clk 0:03:01]} 3... e6 {[%clk 0:02:58.5]}
4. Nf3 {[%clk 0:03:00.9]} 4... Nf6 {[%clk 0:02:58.9]} 5. Qb3 {[%clk 0:02:35.3]}
5... Nc6 {[%clk 0:02:58.9]} 6. c5 {[%clk 0:02:31.6]} 6... Qd7 {[%clk 0:02:51.8]}
7. Bf4 {[%clk 0:02:28]} 7... Be7 {[%clk 0:02:47.6]} 8. e3 {[%clk 0:02:27.6]}
8... O-O {[%clk 0:02:48]} 9. Bb5 {[%clk 0:02:28.2]} 9... a6 {[%clk 0:02:46.7]}
10. Ne5 {[%clk 0:02:28.6]} 10... Nxe5 {[%clk 0:02:34.9]} 11. Bxd7 {[%clk
0:02:28.1]} 11... Nd3+ {[%clk 0:02:35]} 12. Ke2 {[%clk 0:02:22.7]} 12... Nxf4+
{[%clk 0:02:35.3]} 13. exf4 {[%clk 0:02:22.7]} 13... Nxd7 {[%clk 0:02:36.6]} 14.
Kf3 {[%clk 0:02:01]} 14... b6 {[%clk 0:02:30.3]} 15. c6 {[%clk 0:01:58.1]} 15...
Nf6 {[%clk 0:02:28.4]} 16. h3 {[%clk 0:01:57.7]} 16... Ne4 {[%clk 0:02:27]} 17.
Nxe4 {[%clk 0:01:53.8]} 17... Bxe4+ {[%clk 0:02:27.6]} 18. Kg3 {[%clk
0:01:55.1]} 18... Bd6 {[%clk 0:02:27.7]} 19. f3 {[%clk 0:01:53]} 19... Bf5
{[%clk 0:02:25.7]} 20. h4 {[%clk 0:01:52.7]} 20... f6 {[%clk 0:02:22.9]} 21.
Rhe1 {[%clk 0:01:51.5]} 21... g5 {[%clk 0:02:22.5]} 22. hxg5 {[%clk 0:01:50.6]}
22... fxg5 {[%clk 0:02:23.5]} 23. Kf2 {[%clk 0:01:39.3]} 23... Bxf4 {[%clk
0:02:18.6]} 24. g4 {[%clk 0:01:39.7]} 24... Bg6 {[%clk 0:02:10.1]} 25. Rxe6
{[%clk 0:01:39.4]} 25... Kg7 {[%clk 0:01:56.8]} 26. Rae1 {[%clk 0:01:32.3]}
26... Rad8 {[%clk 0:01:42.3]} 27. Re7+ {[%clk 0:01:32.4]} 27... Rf7 {[%clk
0:01:35.9]} 28. Rxf7+ {[%clk 0:01:28.9]} 28... Kxf7 {[%clk 0:01:37.3]} 29. Qb4
{[%clk 0:01:18.9]} 29... Rd6 {[%clk 0:01:29.9]} 30. Qc3 {[%clk 0:01:17.3]} 30...
a5 {[%clk 0:01:26.2]} 31. Re2 {[%clk 0:01:16]} 31... Kf6 {[%clk 0:01:20.4]} 32.
b3 {[%clk 0:01:15.3]} 32... h5 {[%clk 0:01:04.1]} 33. gxh5 {[%clk 0:01:11.1]}
33... Bxh5 {[%clk 0:01:06]} 34. a3 {[%clk 0:01:01]} 34... Bg6 {[%clk 0:00:58.8]}
35. b4 {[%clk 0:01:01.7]} 35... axb4 {[%clk 0:00:54.3]} 36. axb4 {[%clk
0:01:03.6]} 36... Rd8 {[%clk 0:00:49.5]} 37. b5 {[%clk 0:01:02.6]} 37... Rh8
{[%clk 0:00:44.6]} 38. Qe1 {[%clk 0:00:55.4]} 38... Bd3 {[%clk 0:00:25.5]} 39.
Re6+ {[%clk 0:00:55.3]} 39... Kf5 {[%clk 0:00:25.2]} 40. Re5+ {[%clk 0:00:54.5]}
40... Kf6 {[%clk 0:00:23.8]} 41. Rxd5 {[%clk 0:00:50.7]} 41... Rh2+ {[%clk
0:00:22.9]} 42. Kg1 {[%clk 0:00:51.3]} 42... Re2 {[%clk 0:00:24.4]} 43. Qb4
{[%clk 0:00:31.9]} 43... Be3+ {[%clk 0:00:09.5]} 44. Kh1 {[%clk 0:00:32.1]}
44... Bg6 {[%clk 0:00:02.4]} 45. Re5 {[%clk 0:00:27.3]} 1-0

[Event "*** Titled Tuesday Blitz"]
[Site "Chess.com"]
[Date "2019.10.01"]
[Round "7"]
[White "ckgchess"]
[Black "tteshan"]
[Result "1-0"]
[WhiteElo "2687"]
[BlackElo "2268"]
[TimeControl "180+2"]
[EndTime "14:39:24 PDT"]
[Termination "ckgchess won by resignation"]

1. Nf3 {[%clk 0:03:01.9]} 1... Nf6 {[%clk 0:03:01.1]} 2. c4 {[%clk 0:03:02.8]}
2... g6 {[%clk 0:03:02.7]} 3. Nc3 {[%clk 0:03:04.2]} 3... Bg7 {[%clk 0:03:04.3]}
4. e4 {[%clk 0:03:05.8]} 4... d6 {[%clk 0:03:05.8]} 5. d4 {[%clk 0:03:07.2]}
5... O-O {[%clk 0:03:07.4]} 6. Be2 {[%clk 0:02:59.6]} 6... Na6 {[%clk 0:03:07]}
7. O-O {[%clk 0:02:59.3]} 7... e5 {[%clk 0:02:34.6]} 8. h3 {[%clk 0:02:46.3]}
8... exd4 {[%clk 0:02:34.9]} 9. Nxd4 {[%clk 0:02:47.7]} 9... Nc5 {[%clk
0:02:34.9]} 10. Bf3 {[%clk 0:02:48.1]} 10... Re8 {[%clk 0:02:35.2]} 11. Re1
{[%clk 0:02:49.2]} 11... Ne6 {[%clk 0:02:34]} 12. Be3 {[%clk 0:02:47.7]} 12...
Nxd4 {[%clk 0:02:06.8]} 13. Bxd4 {[%clk 0:02:49.6]} 13... Be6 {[%clk 0:02:07.8]}
14. b3 {[%clk 0:02:49.4]} 14... Nd7 {[%clk 0:02:07.1]} 15. Ne2 {[%clk
0:02:35.5]} 15... Ne5 {[%clk 0:02:04.1]} 16. Bxe5 {[%clk 0:02:26.6]} 16... Bxe5
{[%clk 0:02:02]} 17. Rc1 {[%clk 0:02:28.5]} 17... Qf6 {[%clk 0:01:57.8]} 18. Bg4
{[%clk 0:02:25.5]} 18... Bxg4 {[%clk 0:01:48.7]} 19. hxg4 {[%clk 0:02:27.4]}
19... Bb2 {[%clk 0:01:46.3]} 20. Rb1 {[%clk 0:02:24.1]} 20... Be5 {[%clk
0:01:35.5]} 21. g3 {[%clk 0:02:24.7]} 21... Qe6 {[%clk 0:01:29.6]} 22. f3 {[%clk
0:02:19]} 22... h5 {[%clk 0:01:26.2]} 23. gxh5 {[%clk 0:02:19.5]} 23... Qh3
{[%clk 0:01:26.4]} 24. f4 {[%clk 0:02:02.2]} 24... Bf6 {[%clk 0:01:24.7]} 25.
hxg6 {[%clk 0:02:01.8]} 25... Kg7 {[%clk 0:01:23.8]} 26. Qd5 {[%clk 0:01:29.1]}
26... fxg6 {[%clk 0:01:12.2]} 27. Kf2 {[%clk 0:01:22.8]} 27... Qh2+ {[%clk
0:01:07.4]} 28. Kf3 {[%clk 0:01:22.4]} 28... c6 {[%clk 0:01:01.8]} 29. Qd3
{[%clk 0:01:21.9]} 29... Qh5+ {[%clk 0:00:57.9]} 30. Kg2 {[%clk 0:01:23]} 30...
Qg4 {[%clk 0:00:54.8]} 31. Qf3 {[%clk 0:01:21.5]} 31... Qe6 {[%clk 0:00:53.3]}
32. Rbd1 {[%clk 0:01:11.9]} 32... Qxe4 {[%clk 0:00:49.5]} 33. Rxd6 {[%clk
0:01:12.8]} 33... Qxf3+ {[%clk 0:00:40.5]} 34. Kxf3 {[%clk 0:01:14.7]} 34... Re7
{[%clk 0:00:36.9]} 35. Red1 {[%clk 0:01:13.6]} 35... Rae8 {[%clk 0:00:38]} 36.
Rd7 {[%clk 0:01:15.2]} 36... Kf7 {[%clk 0:00:38.5]} 37. Rxe7+ {[%clk 0:01:16.6]}
37... Rxe7 {[%clk 0:00:40.4]} 38. g4 {[%clk 0:01:16.2]} 38... b5 {[%clk
0:00:31.2]} 39. Ng3 {[%clk 0:01:04.9]} 39... bxc4 {[%clk 0:00:31.6]} 40. bxc4
{[%clk 0:01:06.8]} 40... c5 {[%clk 0:00:29.1]} 41. Ne4 {[%clk 0:01:03.5]} 41...
Bd4 {[%clk 0:00:29.9]} 42. Rb1 {[%clk 0:01:04.7]} 42... Kg7 {[%clk 0:00:24.5]}
43. Rb5 {[%clk 0:01:02.7]} 43... Rc7 {[%clk 0:00:24.4]} 44. a4 {[%clk
0:01:03.2]} 44... Kh7 {[%clk 0:00:22.4]} 45. a5 {[%clk 0:01:04.3]} 45... Kg7
{[%clk 0:00:22.7]} 46. a6 {[%clk 0:01:05.4]} 46... Rc6 {[%clk 0:00:21.3]} 47.
Rb7+ {[%clk 0:01:06.4]} 47... Kg8 {[%clk 0:00:22.7]} 48. Rxa7 {[%clk 0:01:07.5]}
48... Rb6 {[%clk 0:00:24.6]} 49. Ra8+ {[%clk 0:01:06.8]} 49... Kg7 {[%clk
0:00:26.2]} 50. g5 {[%clk 0:01:07.6]} 50... Rb3+ {[%clk 0:00:27.4]} 51. Kg4
{[%clk 0:01:09.2]} 51... Rb1 {[%clk 0:00:27.1]} 52. Nd6 {[%clk 0:00:56.8]} 52...
Rg1+ {[%clk 0:00:27.4]} 53. Kf3 {[%clk 0:00:57.8]} 53... Rf1+ {[%clk 0:00:28.3]}
54. Ke4 {[%clk 0:00:59]} 54... Re1+ {[%clk 0:00:27.1]} 55. Kd5 {[%clk
0:01:00.4]} 55... Ra1 {[%clk 0:00:28.9]} 56. Nb5 {[%clk 0:01:00.7]} 56... Be3
{[%clk 0:00:28.8]} 57. Ke4 {[%clk 0:00:56.7]} 57... Bg1 {[%clk 0:00:25.7]} 58.
a7 {[%clk 0:00:57.8]} 58... Kh7 {[%clk 0:00:25.4]} 59. Rc8 {[%clk 0:00:55.9]}
1-0

[Event "*** Titled Tuesday Blitz"]
[Site "Chess.com"]
[Date "2019.10.01"]
[Round "7"]
[White "Alopekos"]
[Black "djano"]
[Result "1-0"]
[WhiteElo "2522"]
[BlackElo "2393"]
[TimeControl "180+2"]
[EndTime "14:39:30 PDT"]
[Termination "Alopekos won by checkmate"]

1. e4 {[%clk 0:03:01.9]} 1... c5 {[%clk 0:03:00.4]} 2. Nc3 {[%clk 0:03:02.5]}
2... a6 {[%clk 0:03:01]} 3. Nf3 {[%clk 0:03:00.7]} 3... e6 {[%clk 0:02:59.9]} 4.
d4 {[%clk 0:03:01.7]} 4... cxd4 {[%clk 0:03:01.3]} 5. Nxd4 {[%clk 0:03:03.6]}
5... b5 {[%clk 0:02:59.8]} 6. Bd3 {[%clk 0:03:03.7]} 6... Bb7 {[%clk 0:01:43.7]}
7. O-O {[%clk 0:03:02.3]} 7... Nc6 {[%clk 0:01:43.8]} 8. Nxc6 {[%clk 0:02:55.5]}
8... Bxc6 {[%clk 0:01:45.7]} 9. Re1 {[%clk 0:02:54.1]} 9... g6 {[%clk
0:01:45.7]} 10. a4 {[%clk 0:02:48.4]} 10... Bg7 {[%clk 0:01:41.4]} 11. axb5
{[%clk 0:02:39.6]} 11... axb5 {[%clk 0:01:43.3]} 12. Rxa8 {[%clk 0:02:40.2]}
12... Qxa8 {[%clk 0:01:43.8]} 13. Nxb5 {[%clk 0:02:39.9]} 13... Qb8 {[%clk
0:01:34.7]} 14. Qe2 {[%clk 0:02:24.8]} 14... Ne7 {[%clk 0:01:31.7]} 15. Be3
{[%clk 0:01:23.9]} 15... O-O {[%clk 0:01:27]} 16. Bc5 {[%clk 0:01:21.1]} 16...
Re8 {[%clk 0:01:10.6]} 17. Bd6 {[%clk 0:00:18]} 17... Qb6 {[%clk 0:00:42.3]} 18.
e5 {[%clk 0:00:17.4]} 18... Nf5 {[%clk 0:00:40]} 19. Bc7 {[%clk 0:00:17.6]}
19... Qc5 {[%clk 0:00:38]} 20. Nd6 {[%clk 0:00:10.8]} 20... Ra8 {[%clk
0:00:24.3]} 21. Nxf5 {[%clk 0:00:08.5]} 21... gxf5 {[%clk 0:00:26.2]} 22. Bd6
{[%clk 0:00:08.7]} 22... Qd5 {[%clk 0:00:24.8]} 23. f3 {[%clk 0:00:09]} 23...
Qd4+ {[%clk 0:00:25.1]} 24. Qf2 {[%clk 0:00:05.8]} 24... Qxb2 {[%clk 0:00:26.3]}
25. h4 {[%clk 0:00:07]} 25... Ra1 {[%clk 0:00:22.8]} 26. Rxa1 {[%clk 0:00:08]}
26... Qxa1+ {[%clk 0:00:24.7]} 27. Kh2 {[%clk 0:00:09.9]} 27... Bxe5+ {[%clk
0:00:25.9]} 28. Bxe5 {[%clk 0:00:06.6]} 28... Qxe5+ {[%clk 0:00:27.8]} 29. Kh1
{[%clk 0:00:05.4]} 29... Qa1+ {[%clk 0:00:25.8]} 30. Kh2 {[%clk 0:00:06.4]}
30... Qe5+ {[%clk 0:00:26.6]} 31. Kh1 {[%clk 0:00:07.5]} 31... Kg7 {[%clk
0:00:28.1]} 32. Kg1 {[%clk 0:00:03.6]} 32... Qf4 {[%clk 0:00:28.8]} 33. h5
{[%clk 0:00:03.1]} 33... Kh6 {[%clk 0:00:29]} 34. Qc5 {[%clk 0:00:02.9]} 34...
Qc1+ {[%clk 0:00:28.2]} 35. Kh2 {[%clk 0:00:03.9]} 35... Qf4+ {[%clk 0:00:29.4]}
36. Kg1 {[%clk 0:00:04.8]} 36... Kxh5 {[%clk 0:00:30.3]} 37. Qf8 {[%clk
0:00:05.1]} 37... Qc1+ {[%clk 0:00:29.4]} 38. Kh2 {[%clk 0:00:05.9]} 38... Qh6
{[%clk 0:00:28.9]} 39. Qxf7+ {[%clk 0:00:04.8]} 39... Kg5+ {[%clk 0:00:29.9]}
40. Kg1 {[%clk 0:00:06.3]} 40... Kf4 {[%clk 0:00:29.7]} 41. Qe7 {[%clk
0:00:04.4]} 41... Ke3 {[%clk 0:00:28.1]} 42. Qc5+ {[%clk 0:00:03.7]} 42... Kd2
{[%clk 0:00:27.2]} 43. Qf2+ {[%clk 0:00:03.3]} 43... Kc1 {[%clk 0:00:28]} 44.
Qe1+ {[%clk 0:00:03.4]} 44... Kb2 {[%clk 0:00:29.2]} 45. Qb4+ {[%clk 0:00:05.1]}
45... Ka1 {[%clk 0:00:29.8]} 46. Qa3+ {[%clk 0:00:05.1]} 46... Kb1 {[%clk
0:00:30.9]} 47. c4# {[%clk 0:00:05.9]} 1-0